{"text_format":"1","workbook":"xlsx","n_sheets":2,"sheets":["CREDIT CARD AUTHORIZATION FORM","SHOPPING LIST"],"not_rendered":{"charts":0,"images":2,"macros":0,"external_links":0,"defined_names":4,"comments":0,"pivot_tables":0},"unopened":[],"bounds":{"document_bytes":16777216,"sheet_cells":100000,"rows_first":2000,"rows_last":500,"rows_between":2000,"halvings":0,"cell_chars":16384,"cell_head_chars":4096},"cells_cut":0,"cells_raw":0,"read":"whole","date_system":"1900"}

{"sheet":"CREDIT CARD AUTHORIZATION FORM","index":0,"n_rows":43,"n_cols":8,"rows_kept":43,"cut":false,"hidden":false,"merged":[[31,1,31,5],[33,1,33,5],[35,1,35,5],[36,1,38,5],[40,1,40,5],[29,1,29,5],[11,4,11,5],[13,1,13,5],[14,1,14,5],[16,1,16,5],[17,1,17,5],[18,1,18,5],[19,1,19,5],[21,1,21,4],[23,1,23,5],[25,1,25,5],[27,1,27,5],[15,2,15,5]]}
[]
[]
[]
[]
[]
[]
[]
[]
[]
[]
[]
[]
[null,"Proforma Invoice Please note: \"Items are subject to \"Substitution\" due to Quality.\""]
[null,"BUCK'S FOOD MARKET"]
["ITEM #","CREDIT CARD AUTHORZATION FORM",null,null,null,null,"CHEF PANTRY","BUCKS WHOLESALE"]
[null,"VILLA NAME:____________________________DELIVERY DATE & TIME:","_______________________"]
["FRUIT","DATE: __________________________________________________________________________"]
["FRUIT","FULL NAME: _____________________________________________________________________"]
["FRUIT","ADDRESS: _______________________________________________________________________"]
["FRUIT","STATE: ______________________________ CITY:  ____________________ZIP CODE: _________"]
["FRUIT"]
["FRUIT","PHONE NUMBER: ________________________________________"]
["FRUIT"]
["FRUIT","I AUTHORIZE BUCK'S FOOD MARKET TO CHARGE FROM MY CREDIT CARD:"]
["FRUIT",null,null,null,null,null,"FRUIT FLIES FOUND"]
["FRUIT","AMOUNT: ______________________"]
["FRUIT"]
["FRUIT","TYPE OF CREDIT CARD:"]
["FRUIT"]
["FRUIT","        MASTER CARD: No#.:_______________________________ EXP.:____________ cvc.: ______"]
["FRUIT"]
["FRUIT","        VISA CARD:  No#.:_________________________________ EXP.:____________ cvc.: ______"]
["FRUIT"]
["FRUIT","        AMERICAN EXPRESS:   No#.:_________________________ EXP.:____________ cvc.: ______"]
["FRUIT"]
["FRUIT","Note - Orders and credit card processing are NOT don't online."]
["FRUIT","  This form is to be downloaded(Printed), completed and emailed (Preferred) or faxed to  Bucks Food Market at (1-284-495-5141).  You will receive a full confirmation via email for all orders submitted."]
["FRUIT"]
["FRUIT"]
["FRUIT"]
["FRUIT","The Management & Staff of Buck's Markets thank you for your business : )"]
["FRUIT"]
["FRUIT"]

{"sheet":"SHOPPING LIST","index":1,"n_rows":254,"n_cols":8,"rows_kept":254,"cut":false,"hidden":false,"merged":[[11,4,11,5],[13,2,13,5]]}
[]
[]
[]
[]
[]
[]
[]
[]
[]
[]
[]
[]
[null,"Proforma Invoice Please note: \"Items are subject to \"Substitution\" due to Quality.\""]
[null,"BUCK'S FOOD MARKET - SHOPPING LIST",{"$f":"TODAY()","v":"2015-11-28"}]
["ITEM #","PRODUCT DESCRIPTION","UOM","QTY.","COST","X-VALUE","CHEF PANTRY","BUCKS WHOLESALE"]
[null,"DAIRY"]
["FRUIT","Butter - Salted","EA",null,5.45,{"$f":"E17*D17","v":0}]
["FRUIT","Butter - Unsalted","EA",null,5.45,0]
["FRUIT","Cheese - Brie","LB",null,15.18,0]
["FRUIT","Cheese - Cheddar","LB",null,7.59,0]
["FRUIT","Cheese - Cottage","EA",null,4.0680000000000005,0]
["FRUIT","Cheese - Cream","EA",null,3.18,0]
["FRUIT","Cheese - Gouda","LB",null,10.62,0]
["FRUIT","Cheese - Swiss","LB",null,8.9879999999999995,0]
["FRUIT","Eggs","DZ",null,4.3499999999999996,0]
["FRUIT","Ice Cream - Chocolate","EA",null,11.69,0,"FRUIT FLIES FOUND"]
["FRUIT","Ice Cream - Strawberry","EA",null,11.69,0]
["FRUIT","Ice Cream - Vanilla","EA",null,11.69,0]
["FRUIT","Margarine","EA",null,4.45,0]
["FRUIT","Milk - 2%","EA",null,10.09,0]
["FRUIT","Milk - Half & Half","EA",null,2.85,{"$f":"E31*D31","v":0}]
["FRUIT","Milk - Regular","EA",null,10.09,0]
["FRUIT","Milk - Skimmed","EA",null,10.09,0]
["FRUIT","Sour Cream","8OZ",null,4.5999999999999996,0]
["FRUIT","Yogurts","EA",null,1.75,0]
["FRUIT","FRESH VEGETABLE"]
["FRUIT","Avocados","EA",null,2.4,0]
["FRUIT","Broccoli","LB",null,3.15,0]
["FRUIT","Cabbages - Green","LB",null,1,0]
["FRUIT","Cabbages - Red","LB",null,1,0]
["FRUIT","Carrots","LB",null,1.05,0]
["FRUIT","Celery","LB",null,1.85,0]
["FRUIT","Cucumbers","LB",null,2.39,0]
["FRUIT","Garlic","LB",null,3.85,0]
["FRUIT","Lettuce - Iceberg","LB",null,2.89,0]
["FRUIT","Lettuce - Romaine","LB",null,3.4,0]
["FRUIT","Mushrooms","LB",null,10.99,0]
["FRUIT","Onions","LB",null,1.45,0]
["FRUIT","Peppers - Green","LB",null,2.4900000000000002,0]
["FRUIT","Peppers - Red","LB",null,3.69,0]
["FRUIT","Potatoes - Baking","LB",null,1.1499999999999999,0]
["VEGETABLE","Potatoes - Sweet","LB",null,1.6679999999999999,0]
["VEGETABLE","Tomatoes - Plum","LB",null,1.99,0]
["VEGETABLE","Tomatoes - Regular","LB",null,2.5,0]
["VEGETABLE","Brussel Sprout","LB",null,4.45,0]
["VEGETABLE","Ginger","LB",null,2.25,0]
[null,"Corn","EA",null,6.21,0]
["VEGETABLE","FRESH FRUITS"]
["VEGETABLE","Apples - Fiji","LB",null,1.79,{"$f":"E59*D59","v":0}]
["VEGETABLE","Apples - Golden","LB",null,1.59,0]
["VEGETABLE","Apples - Green","LB",null,1.75,0]
["VEGETABLE","Apples - Red","LB",null,1.55,0]
["VEGETABLE","Bananas","LB",null,1.38,0]
["VEGETABLE","Blackberries","EA",null,5.69,0]
["VEGETABLE","Blueberries","EA",null,5.85,0]
["VEGETABLE","Grapefruits - Pink","EA",null,2.35,0]
["VEGETABLE","Grapefruits - White","EA",null,1.5,0]
["VEGETABLE","Grapes - Black Globe","LB",null,4.45,0]
["VEGETABLE","Grapes - Green Seedless","LB",null,4.99,0]
["VEGETABLE","Grapes - Red Globe","LB",null,3.65,0]
["VEGETABLE","Grapes - Red Seedless","LB",null,3.35,0]
["VEGETABLE","Lemons","EA",null,0.45,0]
["VEGETABLE","Limes","EA",null,0.59,0]
["VEGETABLE","Mangoes - Large","EA",null,4.49,0]
["VEGETABLE","Melon - Watermelon","LB",null,0.99,0]
["VEGETABLE","Melons - Canteloupe","EA",null,3.05,0]
["VEGETABLE","Melons - Honeydew","EA",null,7.95,0]
["VEGETABLE","Oranges","EA",null,0.79,0]
["VEGETABLE","Papayas - Large","LB",null,1.99,0]
["VEGETABLE","Papayas - Small","LB",null,4.05,0]
["VEGETABLE","Pears - Anjou","EA",null,1.45,0]
["VEGETABLE","Pears - Bosc","EA",null,1.0900000000000001,0]
["VEGETABLE","Pineapples","LB",null,1.79,0]
["VEGETABLE","Raspberries","EA",null,5.69,0]
["VEGETABLE","Strawberries","EA",null,9.19,0]
["VEGETABLE","Tangerines","EA",null,0.69,0]
["VEGETABLE","BREAD"]
["VEGETABLE","8 Grain","EA",null,3.55,0]
["VEGETABLE","Bagels","EA",null,3.15,0]
["VEGETABLE","English Muffins","EA",null,4.8499999999999996,0]
["VEGETABLE","French","EA",null,2.4500000000000002,0]
["VEGETABLE","Hamburger Buns- White","EA",null,2.39,0]
["VEGETABLE","Hot Dog","EA",null,2.39,0]
["VEGETABLE","Rye","EA",null,3.45,0]
["VEGETABLE","White - Slice","EA",null,2.75,0]
["VEGETABLE","Whole Wheat - Slice","EA",null,3.45,0]
["VEGETABLE","Hamburger Buns- Wheat","EA",null,2.5499999999999998,0]
["VEGETABLE","DELI COLD CUTS"]
["VEGETABLE","Ham","LB",null,5.95,0]
["VEGETABLE","Roast Beef","LB",null,8.25,0]
["VEGETABLE","Turkey","LB",null,7.99,0]
["VEGETABLE","Salami","LB",null,5.95,0]
["VEGETABLE","Chicken Breast ","LB",null,8.9499999999999993,0]
[null,"PASTAS"]
[null,"Angel Hair","EA",null,2.79,{"$f":"E105*D105","v":0}]
[null,"Egg Noodles","EA",null,2.25,{"$f":"E106*D106","v":0}]
[null,"Mac & Cheese","EA",null,2.09,{"$f":"E107*D107","v":0}]
[null,"Pasta Sauce - Red","EA",null,4.8899999999999997,{"$f":"E108*D108","v":0}]
[null,"Pasta Sauce - White","EA",null,5.9880000000000004,{"$f":"E109*D109","v":0}]
[null,"Penne","EA",null,3.75,{"$f":"D110*E110","v":0}]
["ZYDIRY","Shells","EA",null,2.99,{"$f":"E111*D111","v":0}]
["ZYDIRY","Spaghetti","EA",null,2.69,{"$f":"E112*D112","v":0}]
[null,"MEAT/FISH/POULTRY"]
["ZYDIRY","Bacon - Pork","8OZ",null,5.75,{"$f":"E114*D114","v":0}]
[null,"Bacon - Turkey","EA",null,5.25,{"$f":"D115*E115","v":0}]
["Z33320770","Chicken - Baking Hens","LB",null,3.29,{"$f":"E116*D116","v":0}]
["Z03320770","Chicken - Breast","LB",null,6.19,0]
["Z03420770","Chicken - Cornish Hens","2PK",null,12.6,0]
["Z02320770","Chicken - Legs","LB",null,2.19,0]
["Z02420770","Chicken - Wings","LB",null,2.7480000000000002,0]
["Z01317770","Grouper","LB",null,8.5,0]
[null,"Hot Dogs - Beef","EA",null,6.19,{"$f":"D122*E122","v":0}]
[null,"Hot Dogs - Chicken","EA",null,3.09,{"$f":"D123*E123","v":0}]
[null,"Lobsters","LB",null,19.95,0]
[null,"Local Pot Fish","LB",null,6.5,0]
[null,"Mahi Mahi","LB",null,8.5,0]
[null,"Mahi Mahi Fillet","LB",null,13.92,0]
[null,"Salmon Fillet","LB",null,13.75,0]
[null,"Salmon Whole","LB",null,13.6,0]
[null,"Sausage","EA",null,8.3000000000000007,0]
[null,"Shrimps","LB",null,22.26,0]
[null,"Steaks - Delmonico ","LB",null,18.55,0]
[null,"Steaks - Minute","LB",null,6.99,0]
[null,"Steaks - T-Bone","LB",null,13.45,0]
[null,"Sword Fish","LB",null,9.75,0]
[null,"Tuna","LB",null,8.5,0]
[null,"Wahoo","LB",null,8.5,0]
[null,"Yellow Tail","LB",null,8.5,0]
[null,"SNACKS"]
[null,"Chips Ahoy","EA",null,5.95,0]
[null,"Oreo","EA",null,6.99,0]
[null,"Potato Chips","EA",null,6.55,0]
[null,"Tortillas Chips","EA",null,6.25,0]
[null,"Wheat Thins","EA",null,6.09,0]
[null,"Nuts - Mixed","EA",null,7.49,0]
[null,"Nuts - Salted Peanuts","EA",null,5.05,0]
[null,"Nuts - Unsalted Peanuts","EA",null,5.05,0]
[null,"Nuts - Cashew","EA",null,7.35,0]
[null,"Nuts - Roasted","EA",null,4.8,0]
[null,"CEREALS"]
[null,"Cheerios","EA",null,6.85,0]
[null,"Corn Flakes","EA",null,4.548,0]
[null,"Corn Pops","EA",null,5.95,0]
[null,"Frosted Flakes","EA",null,7.05,0]
[null,"Granolas","EA",null,6.5880000000000001,0]
[null,"Raisin Bran","EA",null,7.09,0]
[null,"Wheaties","EA",null,5.99,0]
[null,"COFFEE/TEA"]
[null,"Coffee  - Regular","EA",null,19.5,{"$f":"D159*E159","v":0}]
[null,"Coffee Decaffinated","EA",null,19.5,{"$f":"D160*E160","v":0}]
[null,"Tea","EA",null,5.6280000000000001,0]
[null,"Tea Decaffinated","EA",null,2.9880000000000004,0]
[null,"CONDIMENTS"]
[null,"BBQ Sauce","EA",null,3.9,{"$f":"D164*E164","v":0}]
[null,"Dips","EA",null,3.42,{"$f":"D165*E165","v":0}]
[null,"Honey","EA",null,6.35,0]
[null,"Ketchup","EA",null,2.6280000000000001,0]
[null,"Mayonnaise","EA",null,5.15,0]
[null,"Mustard - Djon","EA",null,4.25,0]
[null,"Mustard - Yellow","EA",null,2.09,0]
[null,"Oil Corn","EA",null,8.09,0]
[null,"Oil Olive ","EA",null,8.4499999999999993,0]
[null,"Oil Vegetable","EA",null,6.95,0]
[null,"Olives - Black","EA",null,2.4900000000000002,0]
[null,"Olives - Green","EA",null,3.9,0]
[null,"Pam Spray","EA",null,5.25,0]
[null,"Pickles - Dill","EA",null,3.99,0]
[null,"Pickles - Sweet","EA",null,4.1900000000000004,0]
[null,"Salsa - Hot","EA",null,4.1500000000000004,0]
[null,"Salsa - Mild","EA",null,4.1500000000000004,0]
[null,"Salt","EA",null,1.05,0]
[null,"Soy Sauce","EA",null,3.79,0]
[null,"Syrup","EA",null,5.9880000000000004,0]
[null,"BEVERAGES"]
[null,"7 Up","6PK",null,5,0]
[null,"Apple Juice","EA",null,10.44,0]
[null,"Bloody Mary Mix","EA",null,5.25,0]
[null,"Club Soda","EA",null,7.95,0]
[null,"Coca Cola","6PK",null,5.99,0]
[null,"Cranberry Juice","EA",null,7.55,0]
[null,"Diet 7 Up","6PK",null,5,0]
[null,"Diet Coke","6PK",null,5.99,0]
[null,"Diet Pepsi","6PK",null,5,0]
[null,"Grapefruit Juice","EA",null,6.18,0]
[null,"Margarita Mix","EA",null,5.25,0]
[null,"Pepsi","6PK",null,5,0]
[null,"Pina Colada Mix","EA",null,5.25,0]
[null,"Sprite","6PK",null,5,0]
[null,"Tonic Water ","EA",null,7.95,0]
[null,"Tropicana Juice","EA",null,12.15,0]
[null,"Water Sparkling ","EA",null,4.8,0]
[null,"Water Still","EA",null,2,0]
[null,"BEERS"]
[null,"Smirnoff Ice","6PK",null,12.6,{"$f":"D204*E204","v":0}]
[null,"Bud Light","6PK",null,7.75,{"$f":"D205*E205","v":0}]
[null,"Budweiser","6PK",null,7.75,0]
[null,"Coors Light","6PK",null,9,0]
[null,"Schaefer","6PK",null,5.5,0]
[null,"Heinekin","6PK",null,9.75,0]
[null,"Mackeson","6PK",null,8.5,0]
[null,"Redstripe","6PK",null,9.25,0]
[null,"Becks","6PK",null,8.75,0]
[null,"Odouls","6PK",null,8.25,0]
[null,"Corona","6PK",null,11.65,0]
[null,"Amstel Light","6PK",null,9.75,0]
[null,"Guiness","6PK",null,10.75,0]
[null,"Carib","6PK",null,8.25,0]
[null,"MISC"]
[null,"Bug Spray","EA",null,9.99,0]
[null,"Napkins","EA",null,4.95,0]
[null,"Paper Towels","EA",null,2.99,0]
[null,"Rice - Brown","EA",null,1.69,0]
[null,"Rice - White","EA",null,3.39,0]
[null,"Sun Tan lotion","EA",null,11.99,0]
[null,"Ziplock Bags","EA",null,6.6,0]
["ITEM #","ADDITIONAL - JUST ASK! ABOUT ITEMS THAT ARE NOT LISTED","UOM","QTY.","COST","X-VALUE","CHEF PANTRY","BUCKS WHOLESALE"]
["FRUIT",null,null,null,0,{"$f":"E227*D227","v":0}]
["FRUIT",null,null,null,0,0]
["FRUIT",null,null,null,0,0]
["FRUIT",null,null,null,0,0]
["FRUIT",null,null,null,0,0]
["FRUIT",null,null,null,0,0]
["FRUIT",null,null,null,0,0]
["FRUIT",null,null,null,0,0]
["FRUIT",null,null,null,0,0]
["FRUIT",null,null,null,0,0,"FRUIT FLIES FOUND"]
["FRUIT",null,null,null,0,0]
["FRUIT",null,null,null,0,0]
[]
[null,"SUB-TOTAL",null,{"$f":"SUM(D15:D239)","v":0},null,{"$f":"SUM(F17:F225)","v":0},{"$f":"SUM(G17:G121)","v":0},{"$f":"SUM(H17:H121)","v":0}]
[]
[null,"CHARGES"]
[null,"SERVICE CHARGE",null,1,25,{"$f":"E243*D243","v":25}]
[null,"DELIVERY FEE",null,1,25,{"$f":"E244*D244","v":25}]
[]
[null,"TOTAL",null,null,null,{"$f":"SUM(F240:F244)","v":50}]
[]
[null,"PRICE LIST"]
[null,"THANK YOU FOR YOUR BUSINESS"]
[null,"NOTICE:"]
[null,"PLEASE NOTED THAT PRICES ARE SUBJECT TO CHANGE WITHOUT NOTICE."]
[null,"ALL CLAIMS MUST BE ACCOMPANIED BY DIGITAL PHOTOS / TEMPERATURE RECORDER TAPE."]
[null,"ALL CLAIMS MUST BE IN WRITING WITHIN 24 HOURS AFTER ARRIVAL AT DESTINATION."]
[null,"PLEASE REMIT PAYMENTS TO: BUCK'S."]